bitfinex/quotes_SOLUSD_20240718
["timestamp","ask_amount","ask_price","bid_price","bid_amount"]
[1721325645255,20.0,156.39,156.35,7.67457467]
[1721325645646,20.0,156.39,156.35,6.3956]
[1721325646055,20.0,156.39,156.36,17.26727512]
[1721325646355,20.0,156.4,156.37,7.67370859]
[1721325647540,26.3938,156.4,156.37,1.27890859]
[1721325647763,20.0,156.4,156.37,7.67370859]
[1721325647939,26.3935,156.41,156.37,7.67370859]
[1721325648973,26.3934,156.41,156.37,6.3948]
[1721325649145,20.0,156.41,156.38,6.3946]
[1721325649762,20.0,156.41,156.39,1.2786913]
[1721325650181,6.3924,156.44,156.39,7.6725913]
[1721325650464,31.8781,156.47,156.4,7.67221275]
[1721325650853,6.3922,156.44,156.4,7.67221275]
[1721325651050,6.3918,156.46,156.41,6.3933]
[1721325651261,6.3921,156.45,156.42,1.27849255]
[1721325651766,15.9002,156.47,156.4,15.9842]
[1721325651982,6.3935,156.41,156.38,15.7218]
[1721325652271,6.3935,156.41,156.37,22.382]
[1721325652456,6.3931,156.42,156.38,6.3946]
[1721325652638,6.3934,156.41,156.37,22.3821]
[1721325652955,6.3947,156.38,156.34,38.9549]
[1721325653148,15.9831,156.42,156.34,32.5589]
[1721325653351,20.0,156.41,156.34,15.9904]
[1721325653578,6.395,156.38,156.34,15.9904]
[1721325654251,6.3943,156.39,156.34,15.9904]
[1721325654448,6.3939,156.4,156.34,17.26945185]
[1721325654648,6.3944,156.39,156.34,15.9904]
[1721325654857,26.3946,156.38,156.34,22.3865]
[1721325655176,6.3946,156.38,156.34,22.3865]
[1721325655756,20.0,156.37,156.32,6.3968]
[1721325655955,20.0,156.37,156.3,15.9939]
[1721325656166,6.3978,156.31,156.27,15.9975]
[1721325656470,15.4409,156.33,156.24,6.4002]
[1721325656657,6.3984,156.29,156.24,6.4002]
[1721325656858,20.0,156.28,156.24,6.4002]
[1721325657170,20.0,156.28,156.25,6.3999]
[1721325657682,15.4409,156.33,156.26,6.3994]
[1721325657683,6.3976,156.31,156.26,6.3994]
[1721325657879,20.0,156.32,156.29,6.398]
[1721325658056,20.0,156.32,156.27,1.27970461]
[1721325658255,6.3955,156.36,156.31,6.3975]
[1721325658566,6.3963,156.34,156.3,6.3978]
[1721325658983,6.396,156.35,156.3,6.3978]
[1721325659283,6.396,156.35,156.3,1.27936828]
[1721325659528,6.396,156.35,156.3,6.3978]
[1721325659654,20.0,156.34,156.3,6.3978]
[1721325660158,26.3963,156.34,156.3,6.3978]
[1721325660554,6.397,156.33,156.29,15.9951]
[1721325660754,20.0,156.32,156.26,15.9986]
[1721325660951,6.3979,156.3,156.26,22.3981]
[1721325661151,6.3976,156.31,156.26,22.3981]
[1721325661376,6.3979,156.3,156.26,22.3981]
[1721325661561,61.2312,156.34,156.24,6.2997]
[1721325661760,6.3995,156.26,156.2,6.2997]
[1721325662062,25.24,156.31,156.23,6.4006]
[1721325662261,6.3989,156.28,156.23,6.4006]
[1721325662471,6.3993,156.27,156.23,6.4006]
[1721325662772,6.3988,156.28,156.23,6.4007]
[1721325663161,20.0,156.3,156.25,6.3996]
[1721325663380,20.0,156.32,156.25,6.3996]
[1721325663566,6.3987,156.28,156.24,16.0001]
[1721325663759,6.3992,156.27,156.23,6.4006]
[1721325664066,6.3996,156.26,156.21,16.0035]
[1721325664560,6.3992,156.27,156.22,6.4011]
[1721325664768,20.0,156.26,156.22,6.4011]
[1721325665491,20.0,156.26,156.23,6.4007]
[1721325665686,6.3988,156.28,156.24,6.4003]
[1721325666095,20.0,156.27,156.24,6.4003]
[1721325666486,20.0,156.28,156.24,6.4003]
[1721325666788,22.3416,156.33,156.25,17.27953174]
[1721325666988,22.3416,156.33,156.2,38.3087]
[1721325666989,15.9942,156.31,156.22,16.0024]
[1721325667190,6.4,156.25,156.22,16.0024]
[1721325667581,6.4,156.25,156.2,12.7016]
[1721325667789,6.4,156.25,156.21,6.4015]
[1721325668098,6.4,156.25,156.2,6.4019]
[1721325668297,26.4004,156.24,156.2,6.4019]
[1721325669180,20.0,156.24,156.2,6.4019]
[1721325669497,26.4005,156.24,156.19,22.4079]
[1721325669999,26.4005,156.24,156.2,6.4019]
[1721325670695,41.9318,156.24,156.19,22.4079]
[1721325670895,41.9318,156.24,156.2,6.4019]
[1721325671269,41.9318,156.24,156.19,22.4079]
[1721325671470,20.0,156.24,156.21,16.0036]
[1721325671675,26.4001,156.25,156.21,16.0036]
[1721325671893,20.0,156.25,156.21,16.0036]
[1721325672494,20.0,156.25,156.21,22.4051]
[1721325672701,20.0,156.25,156.21,16.0036]
[1721325673196,20.0,156.25,156.21,22.4051]
[1721325673367,20.0,156.25,156.22,6.401]
[1721325673800,26.3994,156.27,156.22,6.401]
[1721325674108,26.3992,156.27,156.23,6.4007]
[1721325674397,26.3992,156.27,156.21,16.0036]
[1721325674398,6.3997,156.26,156.22,6.4011]
[1721325674577,20.0,156.25,156.22,6.4011]
[1721325674978,20.0,156.25,156.23,6.4007]
[1721325675180,20.0,156.26,156.23,6.4007]
[1721325675492,20.0,156.26,156.24,6.4002]
[1721325675685,20.0,156.27,156.24,6.4002]
[1721325676497,20.0,156.27,156.21,6.4015]
[1721325676692,20.0,156.29,156.21,6.4015]
[1721325676998,20.0,156.29,156.2,48.0145]
[1721325676999,6.3996,156.26,156.22,6.4011]
[1721325677178,20.0,156.29,156.21,6.4016]
[1721325677179,6.4,156.25,156.21,6.4016]
[1721325677384,25.24,156.27,156.2,16.0044]
[1721325677597,6.4004,156.24,156.2,22.4063]
[1721325678282,6.4001,156.25,156.2,22.4063]
[1721325678485,26.4004,156.24,156.2,22.4063]
[1721325678686,6.4004,156.24,156.2,22.4063]
[1721325679398,6.4008,156.23,156.2,16.0044]
[1721325679604,6.4008,156.23,156.19,6.4023]
[1721325679975,20.0,156.26,156.2,6.4018]
[1721325680504,6.4007,156.24,156.19,22.4079]
[1721325680884,6.4007,156.24,156.2,6.402]
[1721325681283,6.4001,156.25,156.2,6.402]
[1721325681485,26.4005,156.24,156.2,6.402]
[1721325681681,6.4008,156.23,156.19,22.408]
[1721325683305,16.0203,156.25,156.15,22.6342]
[1721325683306,6.4014,156.22,156.17,6.403]
[1721325683491,6.4014,156.22,156.18,6.4027]
[1721325684608,6.4014,156.22,156.12,32.0248]
[1721325684609,6.4025,156.19,156.13,16.0118]
[1721325685205,25.24,156.21,156.13,22.4165]
[1721325685400,25.24,156.21,156.13,16.0118]
[1721325685401,20.0,156.2,156.13,16.0118]
[1721325685803,6.4033,156.17,156.13,16.0118]
[1721325686005,15.7742,156.18,156.15,6.404]
[1721325686201,26.4021,156.2,156.1,7.46874192]
[1721325686202,20.0,156.2,156.17,6.4032]
[1721325686512,20.0,156.2,156.16,6.4035]
[1721325686717,6.402,156.2,156.15,6.4039]
[1721325686909,20.0,156.19,156.15,6.4039]
[1721325687111,20.0,156.19,156.16,6.4033]
[1721325687311,20.0,156.19,156.14,16.0108]
[1721325687498,20.0,156.19,156.14,22.4149]
[1721325687693,6.4021,156.2,156.15,6.404]
[1721325688024,20.0,156.21,156.15,6.404]
[1721325688025,26.4025,156.19,156.15,6.404]
[1721325688323,20.0,156.18,156.15,6.404]
[1721325688692,26.4031,156.18,156.14,16.0108]
[1721325689000,6.4032,156.17,156.12,6.4052]
[1721325689201,6.4037,156.16,156.11,16.0139]
[1721325689407,6.4037,156.16,156.11,22.4194]
[1721325689615,20.0,156.15,156.11,16.0139]
[1721325689913,26.4032,156.18,156.13,6.4048]
[1721325690287,26.4032,156.18,156.14,6.4044]
[1721325690683,26.4032,156.18,156.13,6.4048]
[1721325690906,6.4033,156.17,156.13,6.4048]
[1721325691117,26.4037,156.16,156.12,6.4052]
[1721325691302,20.0,156.15,156.12,6.4052]
[1721325691485,20.0,156.15,156.11,16.0139]
[1721325691486,20.0,156.15,156.13,6.4048]
[1721325692113,20.0,156.15,156.11,16.0139]
[1721325692114,26.4041,156.15,156.11,16.0139]
[1721325692291,20.0,156.15,156.12,6.4052]
[1721325692496,20.0,156.15,156.14,6.4045]
[1721325692692,20.0,156.15,156.13,22.4165]
[1721325693015,6.4037,156.16,156.13,16.0118]
[1721325693201,20.0,156.15,156.12,6.4052]
[1721325693401,20.0,156.15,156.13,6.4048]
[1721325693792,15.2044,156.16,156.12,6.4052]
[1721325694089,20.0,156.15,156.12,6.4052]
[1721325694814,20.0,156.15,156.1,16.8285795]
[1721325695006,20.0,156.15,156.1,23.2343795]
[1721325695007,26.4042,156.15,156.1,23.2343795]
[1721325695204,26.4042,156.15,156.1,16.8285795]
[1721325695205,20.0,156.15,156.1,16.8285795]
[1721325695409,6.4046,156.14,156.1,23.2345795]
[1721325695592,20.0,156.13,156.1,16.8285795]
[1721325696503,20.0,156.13,156.1,23.2344795]
[1721325697216,6.4056,156.12,156.1,0.8138795]
[1721325697415,6.4057,156.11,156.1,0.8138795]
[1721325697606,26.4057,156.11,156.1,0.8138795]
[1721325697806,20.0,156.11,156.1,0.8138795]
[1721325698209,26.4057,156.11,156.1,0.8138795]
[1721325698806,71.4057,156.11,156.1,0.8138795]
[1721325699624,26.4057,156.11,156.1,0.8138795]
[1721325700405,20.0,156.11,156.1,0.8138795]
[1721325700793,26.4057,156.11,156.1,0.8138795]
[1721325701004,16.6521,156.12,156.1,0.8138795]
[1721325701212,6.65606138,156.12,156.1,0.8138795]
[1721325701406,13.06146138,156.12,156.1,0.8138795]
[1721325701604,6.405,156.13,156.1,0.8138795]
[1721325701825,6.4045,156.14,156.1,0.8138795]
[1721325702323,20.0,156.13,156.1,0.8138795]
[1721325702619,26.4049,156.13,156.1,0.8138795]
[1721325703110,6.4025,156.19,156.14,6.4041]
[1721325703309,6.4029,156.18,156.14,6.4041]
[1721325703503,6.4025,156.19,156.15,6.404]
[1721325703910,22.9036,156.2,156.13,16.0115]
[1721325704130,6.6525398,156.22,156.19,6.4023]
[1721325704311,6.4009,156.23,156.18,6.4027]
[1721325704554,6.4004,156.24,156.19,6.4023]
[1721325704837,6.4008,156.23,156.19,6.4023]
[1721325705004,6.4008,156.23,156.17,16.0076]
[1721325705005,6.4008,156.23,156.18,6.4027]
[1721325705204,6.4021,156.2,156.15,6.404]
[1721325705413,6.4021,156.2,156.16,6.4035]
[1721325705598,6.4017,156.21,156.16,6.4035]
[1721325707321,6.4021,156.2,156.15,6.404]
[1721325707512,6.4017,156.21,156.16,6.4036]
[1721325707920,20.0,156.2,156.16,6.4036]
[1721325710107,20.0,156.2,156.15,6.404]
[1721325710304,20.0,156.22,156.15,6.404]
[1721325710819,6.4021,156.2,156.15,6.404]
[1721325711022,6.4029,156.18,156.14,16.0107]
[1721325711231,6.4025,156.19,156.14,16.0107]
[1721325712625,6.4029,156.18,156.14,16.0107]
[1721325713021,6.4029,156.18,156.14,22.415]
[1721325713230,6.4021,156.2,156.16,6.4036]
[1721325713537,20.0,156.19,156.16,6.4036]
[1721325714231,20.0,156.19,156.15,6.4039]
[1721325714810,26.4024,156.19,156.15,6.4039]
[1721325715321,20.0,156.19,156.14,16.0107]
[1721325715523,6.4029,156.18,156.14,22.4151]
[1721325716536,6.4025,156.19,156.15,6.404]
[1721325716735,20.0,156.18,156.15,6.404]
[1721325717114,20.0,156.18,156.16,6.4033]
[1721325717320,20.0,156.2,156.16,6.4033]
[1721325717520,20.0,156.2,156.15,1.28081501]
[1721325717734,20.0,156.22,156.14,15.4849]
[1721325718031,26.4014,156.22,156.18,16.0066]
[1721325719917,6.4017,156.21,156.17,6.4031]
[1721325720117,20.0,156.2,156.17,6.4031]
[1721325720318,20.0,156.2,156.15,16.0096]
[1721325720525,26.4021,156.2,156.16,6.4036]
[1721325720837,26.4021,156.2,156.15,22.4133]
[1721325721016,20.0,156.2,156.16,6.4034]
[1721325721213,20.0,156.22,156.16,6.4034]
[1721325721433,6.4017,156.21,156.17,6.4031]
[1721325721640,20.0,156.2,156.18,6.4025]
[1721325721820,20.0,156.22,156.18,6.4025]
[1721325722334,20.0,156.22,156.21,6.4016]
[1721325722526,20.0,156.22,156.19,16.0056]
[1721325722527,20.0,156.22,156.19,22.4079]
[1721325722727,20.0,156.23,156.19,22.4079]
[1721325723640,20.0,156.23,156.19,16.0056]
[1721325723841,20.0,156.24,156.19,16.0056]
[1721325724047,6.3997,156.26,156.21,16.0035]
[1721325724219,6.3992,156.27,156.23,6.4007]
[1721325724423,23.64538271,156.29,156.23,6.4007]
[1721325724634,6.3988,156.28,156.23,6.4007]
[1721325725238,6.3988,156.28,156.24,6.4002]
[1721325725538,15.9646,156.29,156.22,6.4009]
[1721325725842,20.0,156.28,156.22,6.4009]
[1721325726427,20.0,156.28,156.2,16.0046]
[1721325727063,26.3989,156.28,156.24,6.4]
[1721325727544,270.25959071,156.3,156.24,16.0006]
[1721325727545,263.998,156.3,156.24,16.0006]
[1721325727737,263.998,156.3,156.24,17.28049233]
[1721325728736,20.0,156.29,156.25,1.27986935]
[1721325728941,257.6,156.3,156.27,6.3989]
[1721325729620,257.6,156.3,156.26,22.3978]
[1721325729846,6.3971,156.32,156.27,7.67876803]
[1721325730341,6.398,156.3,156.26,15.9984]
[1721325730546,26.3976,156.31,156.26,22.3979]
[1721325730741,26.3976,156.31,156.27,6.3991]
[1721325730942,26.3976,156.31,156.27,7.67878876]
[1721325731243,26.3976,156.31,156.27,6.3991]
[1721325731451,20.0,156.31,156.27,6.3991]
[1721325731747,20.0,156.31,156.27,1.27962617]
[1721325731954,6.3967,156.33,156.29,6.3983]
[1721325732331,6.3963,156.34,156.29,6.3983]
[1721325732829,6.3963,156.34,156.29,7.67784812]
[1721325733028,6.3963,156.34,156.29,7.67776187]
[1721325733345,20.0,156.33,156.29,7.67776187]
[1721325733648,6.396,156.35,156.31,6.3974]
[1721325733845,6.3964,156.34,156.29,12.921]
[1721325734146,6.3962,156.35,156.3,6.3979]
[1721325734334,6.3962,156.35,156.3,7.67732458]
[1721325734537,6.3962,156.35,156.31,6.3974]
[1721325734928,6.3956,156.36,156.32,6.397]
[1721325735139,6.3956,156.36,156.32,7.67636624]
[1721325735334,6.3951,156.37,156.32,6.397]
[1721325735745,6.3951,156.37,156.3,15.9943]
[1721325735746,20.0,156.36,156.31,6.3975]
[1721325735946,6.3955,156.36,156.31,6.3975]
[1721325736133,20.0,156.35,156.31,6.3975]
[1721325736630,20.0,156.35,156.32,6.3971]
[1721325736830,26.3959,156.35,156.31,6.3974]
[1721325737334,6.3954,156.37,156.33,6.3967]
[1721325737558,6.3947,156.38,156.34,6.3962]
[1721325737756,20.0,156.37,156.34,6.3962]
[1721325738357,26.3951,156.37,156.33,6.3966]
[1721325738659,26.3951,156.37,156.3,6.3978]
[1721325738660,6.3962,156.35,156.3,6.3978]
[1721325739034,6.3964,156.34,156.3,6.3978]
[1721325739642,6.396,156.35,156.3,6.3978]
[1721325739850,6.396,156.35,156.31,6.3974]
[1721325740358,6.3955,156.36,156.32,6.397]
[1721325740557,6.3955,156.36,156.31,6.3974]
[1721325741147,6.3955,156.36,156.32,7.67628687]
[1721325741464,6.3959,156.35,156.31,15.9935]
[1721325741645,6.3972,156.32,156.28,15.9964]
[1721325741838,61.2283,156.37,156.28,15.9964]
[1721325742356,61.2283,156.37,156.25,45.0466]
[1721325742357,16.1065,156.34,156.25,45.0466]
[1721325742543,6.398,156.3,156.26,6.3995]
[1721325742750,16.1065,156.34,156.26,6.3995]
[1721325742949,6.3976,156.31,156.27,6.3991]
[1721325743341,6.397,156.33,156.29,6.3983]
[1721325743541,20.0,156.32,156.28,6.3986]
[1721325744163,20.0,156.32,156.29,6.3983]
[1721325744359,20.0,156.33,156.29,6.3983]
[1721325744640,26.3967,156.33,156.28,6.3986]
[1721325744853,20.0,156.33,156.27,15.9972]
[1721325745063,6.3972,156.32,156.27,22.396]
[1721325745241,20.0,156.31,156.27,22.396]
[1721325745444,20.0,156.31,156.27,15.9972]
[1721325745843,20.0,156.33,156.27,15.9972]
[1721325746046,6.3979,156.3,156.26,6.3995]
[1721325746846,6.3979,156.3,156.25,6.3998]
[1721325747343,6.3979,156.3,156.24,16.0004]
[1721325747344,6.3988,156.28,156.24,16.0004]
[1721325747653,6.3984,156.29,156.26,15.9983]
[1721325747856,6.3984,156.29,156.25,6.3998]
[1721325748258,6.398,156.3,156.25,6.3998]
[1721325748566,20.0,156.29,156.24,6.4003]
[1721325748769,20.0,156.33,156.24,6.4003]
[1721325748954,45.0,156.32,156.24,6.4003]
[1721325749156,45.24,156.31,156.23,16.0014]
[1721325749370,6.3994,156.27,156.23,16.0014]
[1721325749584,6.3994,156.27,156.23,22.402]
[1721325749768,6.3989,156.28,156.24,6.4002]
[1721325750262,6.3994,156.27,156.23,16.0014]
[1721325750566,6.4012,156.22,156.17,22.2176]
[1721325750769,6.4012,156.22,156.17,22.4104]
[1721325750968,6.4012,156.22,156.18,6.4028]
[1721325751359,6.4009,156.23,156.18,6.4028]
[1721325752054,25.24,156.25,156.17,16.0075]
[1721325752261,25.24,156.25,156.13,22.0669]
[1721325752262,81.0014,156.24,156.14,16.0109]
[1721325752570,6.4026,156.19,156.15,6.404]
[1721325752870,81.0014,156.24,156.14,16.0109]
[1721325752871,6.402,156.21,156.16,6.4034]
[1721325753071,26.4021,156.2,156.16,6.4034]
[1721325753259,6.4012,156.22,156.16,16.0087]
[1721325753462,20.0,156.21,156.17,6.4031]
[1721325753859,20.0,156.21,156.16,16.0087]
[1721325754050,6.4019,156.21,156.16,22.412]
[1721325754249,20.0,156.2,156.16,22.4122]
[1721325754446,6.4021,156.2,156.16,22.4122]
[1721325754663,6.4024,156.19,156.16,16.0087]
[1721325755182,6.4017,156.21,156.17,6.4031]
[1721325755352,20.0,156.2,156.17,6.4031]
[1721325755970,26.402,156.2,156.16,22.4122]
[1721325756173,26.402,156.2,156.16,16.0087]
[1721325756368,26.402,156.2,156.16,22.4123]
[1721325756669,20.0,156.2,156.16,16.0087]
[1721325756974,20.0,156.21,156.17,6.4031]
[1721325757283,6.4024,156.2,156.15,6.404]
[1721325757791,20.0,156.21,156.13,38.0785]
[1721325757792,6.4031,156.18,156.13,22.4164]
[1721325758453,6.4021,156.2,156.15,6.4039]
[1721325758653,6.4021,156.2,156.16,6.4036]
[1721325758958,20.0,156.19,156.16,6.4036]
[1721325759160,6.403,156.18,156.14,6.4041]
[1721325759376,20.0,156.19,156.15,6.404]
[1721325759549,20.0,156.19,156.16,6.4036]
[1721325760275,26.4027,156.19,156.15,22.4138]
[1721325760475,6.403,156.18,156.14,6.4044]
[1721325760951,26.4025,156.19,156.15,6.404]
[1721325761765,16.0343,156.2,156.16,6.4036]
[1721325762078,16.0343,156.24,156.12,32.0247]
[1721325762272,16.0343,156.24,156.15,61.3433]
[1721325762474,6.4009,156.23,156.19,6.4023]
[1721325763176,6.4012,156.22,156.18,22.4092]
[1721325763378,20.0,156.21,156.18,22.4092]
[1721325763974,20.0,156.21,156.15,16.0096]
[1721325764166,6.4029,156.18,156.13,6.4045]
[1721325764970,6.4032,156.17,156.13,6.4046]
[1721325765277,6.4028,156.18,156.12,16.0126]
[1721325765679,6.4033,156.17,156.12,16.0126]
[1721325765890,26.4034,156.17,156.12,22.4175]
[1721325766478,26.4034,156.17,156.13,6.4047]
[1721325767656,20.0,156.17,156.12,16.0126]
[1721325767882,51.4381,156.19,156.12,16.0126]
[1721325768185,51.4381,156.19,156.1,0.8138795]
[1721325768186,6.4049,156.13,156.1,0.8138795]
[1721325769273,76.493,156.18,156.1,7.2199795]
[1721325769274,6.4046,156.14,156.1,7.2199795]
[1721325770178,6.4042,156.15,156.1,7.2199795]
[1721325770374,20.0,156.14,156.11,6.4054]
[1721325770757,20.0,156.14,156.1,0.8138795]
[1721325770758,20.0,156.14,156.1,7.2198795]
[1721325770976,26.4046,156.14,156.1,7.2198795]
[1721325771171,6.4049,156.13,156.1,0.8138795]
[1721325771368,26.4046,156.14,156.1,7.2199795]
[1721325771565,20.0,156.14,156.1,0.8138795]
[1721325771775,45.0,156.13,156.1,0.8138795]
[1721325772362,6.4057,156.11,156.1,0.8138795]
[1721325772892,26.4057,156.11,156.1,0.8138795]
[1721325773079,20.0,156.11,156.1,0.8138795]
[1721325773987,26.4057,156.11,156.1,0.8138795]
[1721325775496,87.5867,156.11,156.1,0.8138795]
[1721325778088,42.5867,156.11,156.1,0.8138795]
[1721325780886,87.5867,156.11,156.1,0.8138795]
[1721325781092,42.5867,156.11,156.1,0.8138795]
[1721325781286,26.4057,156.11,156.1,0.8138795]
[1721325782389,22.77336317,156.15,156.1,0.8138795]
[1721325783080,6.4051,156.13,156.1,0.8138795]
[1721325783281,6.4046,156.14,156.1,0.8138795]
[1721325783493,16.01,156.16,156.1,0.8138795]
[1721325783807,25.24,156.17,156.1,0.8138795]
[1721325783808,6.4057,156.11,156.1,0.8138795]
[1721325784478,6.4054,156.12,156.1,0.8138795]
[1721325785080,6.4048,156.14,156.1,0.8138795]
[1721325785305,20.0,156.13,156.11,6.4053]
[1721325785802,20.0,156.16,156.11,6.4053]
[1721325786101,6.4033,156.17,156.13,6.4048]
[1721325786596,6.4037,156.16,156.12,6.4052]
[1721325786900,6.4033,156.17,156.13,6.4048]
[1721325787594,6.65295167,156.21,156.13,16.0117]
[1721325787780,40.04130699,156.23,156.16,6.4036]
[1721325788097,40.04130699,156.23,156.15,22.4135]
[1721325788276,40.04130699,156.23,156.12,16.0132]
[1721325788593,6.4026,156.19,156.14,6.4041]
[1721325788817,6.4021,156.2,156.15,7.68442288]
[1721325788979,20.0,156.19,156.15,6.4038]
[1721325789383,20.0,156.19,156.16,6.4035]
[1721325789583,26.4024,156.19,156.15,6.4039]
[1721325789981,20.0,156.19,156.15,6.4039]
[1721325790313,25.24,156.24,156.2,6.4019]
[1721325790314,6.4004,156.24,156.2,6.4019]
[1721325790497,6.4004,156.24,156.16,17.24817765]
[1721325790498,16.2642,156.27,156.18,16.0064]
[1721325790696,16.2642,156.27,156.18,17.28672135]
[1721325790895,6.4003,156.25,156.2,6.4019]
[1721325791100,6.4005,156.24,156.19,6.4023]
[1721325791302,6.4,156.25,156.19,1.28032296]
[1721325791606,6.3996,156.26,156.2,16.0044]
[1721325791913,22.65054752,156.29,156.2,22.406]
[1721325792217,6.3992,156.27,156.23,6.4006]
[1721325792516,6.3992,156.27,156.22,22.4035]
[1721325792693,6.3992,156.27,156.22,16.0024]
[1721325793106,6.3996,156.26,156.22,22.4035]
[1721325793288,26.4002,156.25,156.21,6.4015]
[1721325793496,26.4001,156.25,156.21,6.4015]
[1721325794914,20.0,156.25,156.19,22.4081]
[1721325795227,6.4005,156.24,156.19,22.4082]
[1721325795419,20.0,156.27,156.17,12.9234]
[1721325795596,6.4015,156.22,156.17,12.9234]
[1721325795796,6.4019,156.21,156.16,22.4122]
[1721325796096,6.4012,156.22,156.17,6.4032]
[1721325796292,6.4021,156.2,156.16,22.4122]
[1721325796498,6.4024,156.19,156.16,16.0086]
[1721325796700,6.402,156.2,156.16,16.0086]
[1721325797012,20.0,156.19,156.13,22.4166]
[1721325797197,6.4029,156.18,156.13,22.4166]
[1721325798615,6.4033,156.17,156.13,22.4166]
[1721325798833,6.4038,156.16,156.11,6.4057]
[1721325799903,6.4038,156.16,156.12,6.4051]
[1721325800225,6.4033,156.17,156.13,6.4048]
[1721325800394,6.4036,156.16,156.12,6.4052]
[1721325800714,6.4036,156.16,156.11,6.4054]
[1721325801092,6.4041,156.15,156.11,6.4054]
[1721325801293,6.4047,156.14,156.1,16.8287795]
[1721325801493,6.4053,156.12,156.1,0.8138795]
[1721325802027,6.405,156.13,156.1,0.8138795]
[1721325802200,32.3868,156.16,156.1,0.8138795]
[1721325802399,6.4057,156.11,156.1,0.8138795]
[1721325804699,6.4053,156.12,156.1,0.8138795]
[1721325805117,6.4057,156.11,156.1,0.8138795]
[1721325805713,26.4057,156.11,156.1,0.8138795]
[1721325806694,20.0,156.11,156.1,0.8138795]
[1721325809299,26.4057,156.11,156.1,0.8138795]
[1721325809901,20.0,156.11,156.1,0.8138795]
[1721325810416,26.4057,156.11,156.1,0.8138795]
[1721325811712,20.0,156.11,156.1,0.8138795]
[1721325811909,29.42567379,156.16,156.11,6.4056]
[1721325812102,16.377,156.16,156.11,6.4056]
[1721325812304,6.4045,156.14,156.1,7.2199795]
[1721325812817,6.4042,156.15,156.11,6.4056]
[1721325813303,6.4038,156.16,156.1,16.8288795]
[1721325813502,6.4038,156.16,156.12,6.4052]
[1721325813707,6.4038,156.16,156.11,6.4056]
[1721325814623,20.0,156.15,156.11,6.4056]
[1721325814814,36.90152354,156.2,156.1,0.8138795]
[1721325815022,29.23431655,156.2,156.15,6.4037]
[1721325815323,6.4025,156.19,156.15,16.0096]
[1721325815524,22.5935,156.2,156.15,22.4133]
[1721325815725,6.4017,156.21,156.16,6.4035]
[1721325815929,6.4017,156.21,156.17,6.4032]
[1721325816311,20.0,156.2,156.17,6.4032]
[1721325816628,6.4008,156.23,156.18,6.4025]
[1721325816931,6.4008,156.23,156.18,7.68294083]
[1721325817106,6.4008,156.23,156.18,7.68293906]
[1721325817306,6.4008,156.23,156.19,6.4022]
[1721325817813,6.4003,156.25,156.2,6.402]
[1721325818010,6.4003,156.25,156.2,7.68227525]
[1721325818414,20.0,156.24,156.2,7.68227525]
[1721325819409,26.4004,156.24,156.2,7.68227525]
[1721325819623,26.4004,156.24,156.2,6.402]
[1721325819826,26.4004,156.24,156.19,16.0056]
[1721325820035,6.4012,156.22,156.18,6.4027]
[1721325820911,6.4009,156.23,156.18,6.4027]
[1721325821324,20.0,156.24,156.18,16.0065]
[1721325821523,20.0,156.24,156.2,6.4017]
[1721325821730,20.0,156.24,156.19,6.4023]